[Event "Gibraltar Amateurs B 2020"]
[Site "Caleta"]
[Date "2020.01.25"]
[Round "1.1"]
[White "Longdin, Michael"]
[Black "Sedgwick, David"]
[Result "0-1"]
[ECO "D02"]
[WhiteElo "1680"]
[BlackElo "1894"]
[Annotator "NA RC"]
[PlyCount "106"]
[EventDate "2020.01.20"]
[EventType "swiss"]
[EventCountry "GGB"]
[SourceTitle "playchess.com"]
[Source "ChessBase"]
[SourceQuality "1"]
[TimeControl "6600+10"]

{[%evp 10,99,4,32767,32767,32767,32767,32767,110,135,118,32767,140,149,157,154,32767,77,72,32767,32767,32767,32767,32767,32767,32767,32767,89,91,96,115,32767,32767,32767,178,102,32767,115,115,32767,32767,114,32767,32767,32767,32767,32767,125,112,106,32767,105,105,98,102,32767,97,32767,123,57,32767,51,290,32767,32767,32767,116,134,200,32767,313,309,331,335,32767,32767,32767,32767,235,32767,32767,-983,-2167,-1514,32767,32767,-2450,32767,32767,-5114,-29959,-29972]} 1. d4 {[%emt 0:00:09]} c5 {[%emt 0:00:09]} 2. c3 {[%emt 0:01:35]} e6 {[%emt 0:00:12]} 3. Bf4 {[%emt 0:00:16]} d5 {[%emt 0:00:22]} 4. e3 {[%emt 0:00:18]} Nc6 {[%emt 0:00:34]} 5. Nf3 {[%emt 0:00:32]} Nf6 {[%emt 0:01:15]} 6. Nbd2 {[%emt 0:00:36]} Be7 {[%emt 0:00:46]} 7. Bd3 {[%emt 0:00:35]} b6 {[%emt 0:02:37]} 8. Ne5 {[%emt 0:01:12] D02: 1 d4 d5 2 Nf3 sidelines, including 2...Nf6 3 g3 and 2...Nf6 3 Bf4} (8. Qe2 Bb7 9. Rd1 Bd6 10. Bg3 Bxg3 11. hxg3 Qe7 12. dxc5 Qxc5 13. e4 dxe4 14. Nxe4 Nxe4 15. Bxe4 h6 {1-0 (50) Stocek,J (2560)-Sousa,A (2374) Karlsruhe 2017}) 8... Bb7 {[%emt 0:02:10]} (8... Nxe5 $11 9. dxe5 Nd7) 9. Bb5 {[%emt 0:03:48]} Rc8 {[%emt 0:02:20]} 10. Qa4 {[%emt 0:00:43]} a6 {[%emt 0:01:07]} 11. Bxc6+ $146 {[%emt 0:01:32]} ({Predecessor:} 11. Nxc6 axb5 12. Nxd8 bxa4 13. Nxb7 Nh5 14. Nd6+ Bxd6 15. Bxd6 {1-0 (25) Dabraccio,G (1745)-Bracho Mendoza,A (1601) Cartagena 2012}) 11... Bxc6 {[%emt 0:00:16]} 12. Nxc6 {[%emt 0:00:13]} Qd7 {[%emt 0:00:20]} 13. Qxa6 {[%emt 0:01:51]} (13. Nxe7 $142 Qxa4 14. Nxc8) 13... Qxc6 {[%emt 0:00:59]} 14. Qe2 {[%emt 0:00:52]} O-O {[%emt 0:01:35]} 15. O-O {[%emt 0:00:15]} c4 {[%emt 0:01:54]} 16. Rfe1 {[%emt 0:03:37]} Ne4 {[%emt 0:02:03]} 17. Nxe4 {[%emt 0:04:48]} dxe4 {[%emt 0:00:03]} 18. Be5 {[%emt 0:08:19]} f6 {[%emt 0:04:41]} 19. Bg3 {[%emt 0:00:23]} Qb5 {[%emt 0:01:38]} 20. Rf1 {[%emt 0:06:20]} Qf5 {[%emt 0:03:42]} 21. f3 {[%emt 0:02:18]} e5 {[%emt 0:02:52]} (21... exf3 $16 {is a better defense.} 22. gxf3 (22. Qxf3 Qxf3 23. gxf3 Kf7 $16) (22. Rxf3 Qe4 $16) 22... Rfd8) 22. dxe5 {[%emt 0:02:07]} (22. Qc2 $18) 22... fxe5 {[%emt 0:00:22]} 23. f4 {[%emt 0:04:50]} exf4 {[%emt 0:02:19]} 24. Rxf4 {[%emt 0:00:57]} Qe6 {[%emt 0:00:47]} 25. Qg4 {[%emt 0:04:17]} Qxg4 {[%emt 0:00:51]} 26. Rxg4 {[%emt 0:00:07]} Bc5 {[%emt 0:00:14]} 27. Rxe4 {[%emt 0:01:46]} Rfe8 {[%emt 0:00:14]} 28. Rxe8+ {[%emt 0:01:01]} Rxe8 {[%emt 0:00:02]} 29. Kf1 {[%emt 0:04:58]} Bxe3 {[%emt 0:02:37]} 30. Re1 {[%emt 0:02:21]} Rf8+ {[%emt 0:00:10]} 31. Ke2 {[%emt 0:00:37]} Bg5 {[%emt 0:02:31]} 32. Bf2 {[%emt 0:07:07]} b5 {[%emt 0:04:27]} 33. Bd4 {[%emt 0:01:30]} Ra8 {[%emt 0:01:17]} 34. a3 {[%emt 0:02:56]} (34. Kf3 $16) 34... Re8+ {[%emt 0:02:17]} 35. Kd1 {[%emt 0:01:20]} Rd8 $2 {[%emt 0:02:22]} ({Better is} 35... Rxe1+ $1 $14 36. Kxe1 Kf7) 36. Kc2 {[%emt 0:00:56]} Bf4 {[%emt 0:02:57]} 37. g3 {[%emt 0:00:59]} Bd6 {[%emt 0:00:21]} 38. Rf1 {[%emt 0:02:39]} Re8 {[%emt 0:03:11]} (38... g6 $16 {was called for.} 39. Rf6 Rd7) 39. Kd2 {[%emt 0:00:54]} Re6 {[%emt 0:02:53]} (39... Rb8 {might work better.} 40. Rf5 Rb7) 40. Rf5 {[%emt 0:04:43]} Rh6 {[%emt 0:01:54]} 41. Bg1 {[%emt 0:00:59]} ({But not} 41. Rxb5 Rxh2+ 42. Ke3 Kf7 $18) 41... Rf6 {[%emt 0:02:25]} 42. Rxf6 {[%emt 0:01:48]} gxf6 {[%emt 0:00:00]} 43. Ke3 {[%emt 0:00:22]} Kf7 $4 {[%emt 0:00:33]} (43... Bc5+ $19 {and all is fine.} 44. Ke4 Bxg1) 44. g4 {[%emt 0:01:19]} Bc5+ {[%emt 0:00:29]} 45. Ke4 {[%emt 0:00:09]} Bxg1 {[%emt 0:00:12]} 46. Kd5 {[%emt 0:00:18]} Bxh2 {[%emt 0:02:33]} 47. Kc5 {[%emt 0:00:06]} Ke6 {[%emt 0:02:13]} 48. Kxb5 {[%emt 0:00:56]} Kd5 {[%emt 0:00:08]} 49. a4 {[%emt 0:00:20]} Bg1 {[%emt 0:01:22]} 50. a5 {[%emt 0:00:25]} Be3 {[%emt 0:00:17]} 51. a6 {[%emt 0:00:08]} Bc5 {[%emt 0:02:40]} 52. a7 {[%emt 0:01:39]} Bxa7 {[%emt 0:00:05]} 53. Ka6 {[%emt 0:00:05]} Be3 {[%emt 0:00:20]} 0-1

[Event "Gibraltar Amateurs B 2020"]
[Site "Caleta"]
[Date "2020.01.25"]
[Round "1.2"]
[White "Nash, Damian"]
[Black "Poggio, Freddie"]
[Result "1-0"]
[ECO "B23"]
[WhiteElo "1890"]
[BlackElo "1680"]
[Annotator "NA RC"]
[PlyCount "43"]
[EventDate "2020.01.20"]
[EventType "swiss"]
[EventCountry "GGB"]
[SourceTitle "playchess.com"]
[Source "ChessBase"]
[SourceQuality "1"]
[TimeControl "6600+10"]

{[%evp 8,39,-4,32767,32767,32767,32767,32767,32767,55,32767,32767,32767,41,32767,22,41,34,65,59,80,7,35,-135,32767,32767,32767,10,32767,29990,2419,11897,29994,29995]} 1. e4 {[%emt 0:00:00]} c5 {[%emt 0:00:39]} 2. Nc3 {[%emt 0:00:15]} Nc6 {[%emt 0:01:03]} 3. f4 {[%emt 0:00:08]} e6 {[%emt 0:02:21]} 4. Nf3 {[%emt 0:00:47]} d5 {[%emt 0:01:22]} 5. Bb5 {[%emt 0:02:01]} a6 {[%emt 0:01:30]} 6. Bxc6+ {[%emt 0:00:29]} bxc6 {[%emt 0:00:32]} 7. O-O {[%emt 0:00:28] B23: Closed Sicilian: Lines without g3} (7. d3 Bd6 8. O-O Ne7 9. Na4 O-O 10. c4 Ng6 11. e5 Be7 12. Qe2 a5 13. b3 f6 14. g3 fxe5 15. fxe5 dxc4 16. dxc4 Nxe5 {1-0 (38) Niering,M (2218)-Morczynski,J (1780) Berlin 2019}) 7... c4 {[%emt 0:03:22]} 8. d3 {[%emt 0:04:25]} cxd3 {[%emt 0:01:30]} 9. cxd3 {[%emt 0:06:52]} Bc5+ {[%emt 0:00:27]} 10. d4 $146 {[%emt 0:04:18]} ({Predecessor:} 10. Kh1 Nf6 11. d4 Be7 12. e5 Nd7 13. Qd3 c5 14. f5 Nf8 15. dxc5 Bxc5 {1-0 (25) Sanchez Moreira,A-Zamora Perera,G Cuba 1998}) 10... Ba7 {[%emt 0:00:14]} 11. Kh1 {[%emt 0:06:33]} dxe4 {[%emt 0:02:19]} 12. Nxe4 {[%emt 0:02:09]} Ne7 {[%emt 0:00:48]} 13. b3 {[%emt 0:05:32]} Nf5 {[%emt 0:01:53]} 14. Ne5 {[%emt 0:04:49]} ({White should play} 14. Ba3 $16) 14... Qd5 {[%emt 0:03:52]} ({Don't play} 14... Qxd4 $6 15. Qf3 $16) (14... Bb7 $5 {[%cal Ra7d4]}) 15. Ng5 $2 {[%emt 0:18:23]} (15. Re1 $14 {keeps the upper hand.}) 15... O-O {[%emt 0:00:48]} 16. Ba3 {[%emt 0:00:45]} Ne3 {[%emt 0:00:19]} 17. Qf3 {[%emt 0:07:02]} (17. Qe2 $16 Bxd4 18. Bxf8 Kxf8 19. Rae1 (19. Nxh7+ Kg8 $11) (19. Ngxf7 Bb7 $14)) 17... Nxf1 {[%emt 0:01:44] [#]} 18. Qh5 $1 {[%emt 0:04:34] Double Attack} Ng3+ {[%emt 0:03:17]} 19. hxg3 {[%emt 0:00:13]} h6 {[%emt 0:00:44]} 20. Bxf8 {[%emt 0:00:06]} hxg5 {[%emt 0:02:29]} 21. Qxf7+ {[%emt 0:00:10]} Kh7 {[%emt 0:00:09]} 22. Qxg7# {[%emt 0:00:25]} 1-0

[Event "Gibraltar Amateurs B 2020"]
[Site "Caleta"]
[Date "2020.01.25"]
[Round "1.3"]
[White "Boghi, Victor Almeida"]
[Black "Bosschem, Eddy"]
[Result "1/2-1/2"]
[ECO "A07"]
[WhiteElo "1679"]
[BlackElo "1881"]
[Annotator "NA RC"]
[PlyCount "57"]
[EventDate "2020.01.20"]
[EventType "swiss"]
[EventCountry "GGB"]
[SourceTitle "playchess.com"]
[Source "ChessBase"]
[SourceQuality "1"]
[TimeControl "6600+10"]

1. Nf3 {[%emt 0:00:00]} d5 {[%emt 0:00:00]} 2. g3 {[%emt 0:00:08]} Nf6 {[%emt 0:00:15]} 3. Bg2 {[%emt 0:00:07]} c6 {[%emt 0:00:13]} 4. O-O {[%emt 0:00:43]} Bg4 {[%emt 0:00:13]} 5. h3 {[%emt 0:00:24]} Bh5 {[%emt 0:00:17]} 6. d3 {[%emt 0:00:24] A07: Réti Opening: New York and Capablanca Systems} (6. c4 e6 7. d3 dxc4 8. dxc4 Nbd7 9. Nc3 Qc7 10. Qc2 Be7 11. Nh4 O-O 12. Bf4 e5 13. Be3 Nc5 {0-1 (35) Meier,G (2626)-Kobalia,M (2609) Moscow 2019}) 6... e6 {[%emt 0:00:18]} 7. Nbd2 {[%emt 0:00:43]} Bd6 {[%emt 0:05:31]} 8. e4 {[%emt 0:02:25]} Qc7 {[%emt 0:01:30]} 9. Qe1 {[%emt 0:00:41]} Nbd7 {[%emt 0:01:25]} 10. exd5 {[%emt 0:02:11]} cxd5 {[%emt 0:00:26]} 11. c4 $146 {[%emt 0:00:15]} ({Predecessor:} 11. Nd4 O-O 12. Nb5 Qb6 13. Nxd6 Qxd6 14. Nb3 Rac8 15. Bd2 Rfe8 16. Rc1 Qa6 17. Bc3 {½-½ (17) Weemaes,R (2318)-Knors,L (2306) Plancoet 2004}) 11... O-O {[%emt 0:05:35]} 12. g4 {[%emt 0:03:42]} Bg6 {[%emt 0:00:09]} 13. Qe2 {[%emt 0:00:42]} Nc5 {[%emt 0:14:12]} 14. Ne1 {[%emt 0:01:32]} Rad8 {[%emt 0:13:58]} 15. Ndf3 {[%emt 0:03:35]} (15. d4 $1 $15 Nce4 16. c5 Bh2+ 17. Kh1) 15... dxc4 {[%emt 0:02:57]} 16. dxc4 {[%emt 0:00:40]} Nd3 {[%emt 0:07:00]} 17. Nh4 {[%emt 0:05:24] [#]} Nf4 {[%emt 0:03:18]} ({Better is} 17... Nxe1 $1 $19 18. Nxg6 Nxg2 19. Nxf8 Qc6) 18. Bxf4 {[%emt 0:02:03]} Bxf4 {[%emt 0:00:16]} 19. Nxg6 {[%emt 0:00:17]} hxg6 {[%emt 0:00:09]} 20. Nf3 {[%emt 0:00:37]} Rd6 {[%emt 0:04:30]} 21. Rfd1 {[%emt 0:02:18]} Rfd8 {[%emt 0:00:08]} 22. b3 {[%emt 0:01:10]} b6 {[%emt 0:04:20]} 23. Rxd6 {[%emt 0:03:00]} Qxd6 {[%emt 0:00:09]} 24. Rb1 {[%emt 0:00:24]} e5 {[%emt 0:10:54]} 25. Nh2 {[%emt 0:04:19]} Qd4 {[%emt 0:07:24]} 26. Nf1 {[%emt 0:01:07]} Qd3 $11 {[%emt 0:03:55]} 27. Rb2 {[%emt 0:01:28]} Kf8 {[%emt 0:00:52]} 28. Ne3 {[%emt 0:00:41]} Qd4 {[%emt 0:03:49]} 29. Nd5 {[%emt 0:06:00]} 1/2-1/2

[Event "Gibraltar Amateurs B 2020"]
[Site "Caleta"]
[Date "2020.01.25"]
[Round "1.4"]
[White "Dumont, Andre"]
[Black "Krause, Helmut"]
[Result "1-0"]
[ECO "A30"]
[WhiteElo "1872"]
[BlackElo "1660"]
[Annotator "NA RC"]
[PlyCount "41"]
[EventDate "2020.01.20"]
[EventType "swiss"]
[EventCountry "GGB"]
[SourceTitle "playchess.com"]
[Source "ChessBase"]
[SourceQuality "1"]
[TimeControl "6600+10"]

{[%evp 13,40,-16,13,32767,4,-4,12,32767,32767,43,31,27,35,17,25,32767,32767,17,32767,32767,32767,239,207,212,200,32767,32767,327,510]} 1. Nf3 {[%emt 0:00:00]} Nf6 {[%emt 0:00:00]} 2. c4 {[%emt 0:00:00]} c5 {[%emt 0:00:02]} 3. b3 {[%emt 0:01:00]} b6 {[%emt 0:01:28]} 4. Bb2 {[%emt 0:00:23]} Bb7 {[%emt 0:00:22]} 5. e3 {[%emt 0:00:26]} e6 {[%emt 0:04:35]} 6. Nc3 {[%emt 0:01:36] A30: Symmetrical English: Double Fianchetto and Hedgehog} Nc6 {[%emt 0:05:20]} 7. Qc2 {[%emt 0:03:46]} (7. Be2 Be7 8. O-O O-O 9. d4 d5 10. cxd5 Nxd5 11. Nxd5 Qxd5 12. dxc5 Qxd1 13. Rfxd1 Bxc5 14. Rd7 Bc8 15. Rd2 a5 16. Bb5 Na7 17. Bd3 Bb7 18. a3 {0-1 (48) Safarli,E (2624)-Abasov,N (2636) Nakhchivan 2019}) 7... Qc7 $146 {[%emt 0:04:48]} ({Predecessor:} 7... Be7 8. a3 O-O 9. Bd3 d5 10. cxd5 exd5 11. O-O Na5 {0-1 (48) Gabriel,J (2375)-Crouch,C (2315) Krumbach 1991}) 8. Be2 {[%emt 0:07:40]} Be7 {[%emt 0:03:18]} 9. a3 {[%emt 0:00:35]} a6 {[%emt 0:00:18]} 10. O-O {[%emt 0:02:05]} d6 {[%emt 0:04:48]} 11. d4 {[%emt 0:03:21]} cxd4 {[%emt 0:03:54]} 12. exd4 {[%emt 0:00:44]} d5 {[%emt 0:06:23]} 13. cxd5 {[%emt 0:14:49]} exd5 {[%emt 0:00:15]} 14. Rac1 {[%emt 0:03:00]} Bd6 {[%emt 0:03:43]} 15. Qf5 {[%emt 0:05:10]} Qc8 {[%emt 0:05:53]} 16. Qg5 {[%emt 0:01:29]} Qg4 {[%emt 0:01:35]} 17. Qxg4 {[%emt 0:03:09]} Nxg4 {[%emt 0:00:14]} 18. Nxd5 {[%emt 0:00:25]} b5 {[%emt 0:09:58]} 19. h3 {[%emt 0:11:29]} Nh6 {[%emt 0:00:57] [#]} 20. Nb6 $1 {[%emt 0:00:53]} Rd8 $18 {[%emt 0:00:28]} (20... O-O $142 21. Nxa8 Rxa8) 21. d5 {[%emt 0:00:19]} 1-0

[Event "Gibraltar Amateurs B 2020"]
[Site "Caleta"]
[Date "2020.01.25"]
[Round "1.5"]
[White "Gillis Glastone, Philippe"]
[Black "White, David J"]
[Result "0-1"]
[ECO "A43"]
[WhiteElo "1654"]
[BlackElo "1872"]
[Annotator "NA RC"]
[PlyCount "40"]
[EventDate "2020.01.20"]
[EventType "swiss"]
[EventCountry "GGB"]
[SourceTitle "playchess.com"]
[Source "ChessBase"]
[SourceQuality "1"]
[TimeControl "6600+10"]

{[%evp 14,39,-44,32767,17,32767,-35,-37,32767,-238,-201,-320,-315,32767,-293,-362,-314,32767,-363,32767,-323,32767,-400,32767,-200,-1126,-1259,-29997]} 1. d4 {[%emt 0:00:00]} Nf6 {[%emt 0:00:00]} 2. Bf4 {[%emt 0:00:11]} c5 {[%emt 0:00:51]} 3. d5 {[%emt 0:00:52]} d6 {[%emt 0:00:20]} 4. Nc3 {[%emt 0:01:10]} g6 {[%emt 0:00:40]} 5. Nf3 {[%emt 0:04:27]} Bg7 {[%emt 0:00:14]} 6. e4 {[%emt 0:01:23]} O-O {[%emt 0:01:08] A43: Schmid Benoni} (6... Qb6 7. Bb5+ Bd7 8. a4 a6 9. a5 Qd8 10. Be2 b5 11. axb6 Qxb6 12. Rb1 Bb5 13. O-O Nbd7 14. Re1 {0-1 (49) Caruana,F (2816)-Nakamura,H (2769) Paris 2018}) 7. Bc4 {[%emt 0:02:57]} b5 $1 {[%emt 0:08:36]} 8. Bxb5 {[%emt 0:06:56]} Qa5 {[%emt 0:03:15]} (8... Nxe4 $5 9. Nxe4 Qa5+ 10. Nc3 Bxc3+ 11. bxc3 Qxb5 $15) 9. Bd3 {[%emt 0:05:35]} c4 $1 {[%emt 0:01:33]} 10. Bxc4 {[%emt 0:11:55]} Nxe4 {[%emt 0:00:23]} 11. Qd3 $2 $146 {[%emt 0:09:28]} ({White should play Predecessor:} 11. O-O $15 Nxc3 12. bxc3 Qxc3 13. Qd3 Qxd3 14. cxd3 Bxa1 15. Rxa1 {0-1 (26) Manuel Mestras,N (1674)-Vanegas,R (1865) Mosquera 2014}) 11... Bf5 {[%emt 0:05:32]} 12. Bd2 {[%emt 0:16:54] [#]} (12. g4 {was worth a try.} Nxf2 13. Qd2 Bxg4 14. Qxf2 Bxc3+ 15. Bd2 Bxd2+ 16. Nxd2) 12... Nxf2 $1 {[%emt 0:13:13]} 13. Qe2 {[%emt 0:02:00]} Nxh1 {[%emt 0:01:11]} 14. O-O-O {[%emt 0:07:18]} Nd7 {[%emt 0:02:13]} 15. Nb5 {[%emt 0:03:27]} Qb6 {[%emt 0:02:53]} ({Don't take} 15... Qa4 16. Bb3 $19) 16. Rxh1 {[%emt 0:04:30]} Rab8 {[%emt 0:06:41]} 17. b3 {[%emt 0:05:45]} a6 {[%emt 0:06:25]} 18. Nc3 {[%emt 0:02:43]} Qa5 {[%emt 0:01:14]} 19. Nb1 $19 {[%emt 0:00:24]} (19. Na4 Qc7 20. Nh4) 19... Qxa2 {[%emt 0:02:39]} 20. Bc3 {[%emt 0:00:24]} Bh6+ {[%emt 0:01:56]} 0-1

[Event "Gibraltar Amateurs B 2020"]
[Site "Caleta"]
[Date "2020.01.25"]
[Round "1.6"]
[White "Nwachukwu, Chino"]
[Black "Izzard, Brian J"]
[Result "1-0"]
[ECO "B01"]
[WhiteElo "1868"]
[BlackElo "1626"]
[Annotator "NA RC"]
[PlyCount "40"]
[EventDate "2020.01.20"]
[EventType "swiss"]
[EventCountry "GGB"]
[SourceTitle "playchess.com"]
[Source "ChessBase"]
[SourceQuality "1"]
[TimeControl "6600+10"]

1. e4 {[%emt 0:05:29]} d5 {[%emt 0:00:18]} 2. exd5 {[%emt 0:00:13]} Nf6 {[%emt 0:00:13]} 3. d4 {[%emt 0:00:22]} Nxd5 {[%emt 0:00:22]} 4. Nf3 {[%emt 0:00:16]} Bg4 {[%emt 0:00:59]} 5. Be2 {[%emt 0:01:30]} e6 {[%emt 0:00:32]} 6. O-O {[%emt 0:00:39]} Be7 {[%emt 0:00:21]} 7. c4 {[%emt 0:00:24]} Nf6 {[%emt 0:01:06]} 8. Qb3 {[%emt 0:01:19]} b6 {[%emt 0:03:32]} 9. h3 {[%emt 0:00:10]} Bf5 {[%emt 0:00:43]} 10. Nc3 {[%emt 0:02:02]} Nbd7 {[%emt 0:05:16]} 11. Bf4 {[%emt 0:02:48]} O-O {[%emt 0:04:00]} 12. Nh4 {[%emt 0:04:08]} Be4 {[%emt 0:01:38]} 13. Nxe4 {[%emt 0:02:01]} Nxe4 {[%emt 0:00:26]} 14. Nf3 {[%emt 0:00:07]} a5 {[%emt 0:11:34]} ({Black should play} 14... Bd6 $14 15. Qe3 Bxf4 16. Qxf4 (16. Qxe4 Bh6 $14) 16... Nef6) 15. Rfd1 {[%emt 0:01:21]} a4 {[%emt 0:02:06]} ({Black should play} 15... Bd6 $14 16. Bd3 Bxf4 17. Bxe4 Rc8) 16. Qc2 {[%emt 0:00:48]} Nef6 {[%emt 0:03:35]} (16... f5 $16 {might work better.}) 17. Ne5 {[%emt 0:02:50]} Nxe5 $18 {[%emt 0:01:27]} (17... Nb8 $16 18. Rac1 h6) 18. dxe5 {[%emt 0:00:10]} Nd7 {[%emt 0:00:53]} 19. Bf3 {[%emt 0:00:12]} Ra5 {[%emt 0:05:40]} 20. Bc6 {[%emt 0:00:18]} Nb8 {[%emt 0:00:49]} 1-0

[Event "Gibraltar Amateurs B 2020"]
[Site "Caleta"]
[Date "2020.01.25"]
[Round "1.7"]
[White "Henderson Franklin, Matthew"]
[Black "Teh, Wee Zhun"]
[Result "1/2-1/2"]
[ECO "B02"]
[WhiteElo "1617"]
[BlackElo "1857"]
[Annotator "NA RC"]
[PlyCount "32"]
[EventDate "2020.01.20"]
[EventType "swiss"]
[EventCountry "GGB"]
[SourceTitle "playchess.com"]
[Source "ChessBase"]
[SourceQuality "1"]
[TimeControl "6600+10"]

{[%evp 8,31,30,32767,32767,32767,32767,32767,32767,32767,32767,8,58,50,93,93,84,57,32767,32767,32767,32767,32767,32767,122,137]} 1. e4 {[%emt 0:00:00]} Nf6 {[%emt 0:01:52]} 2. Nc3 {[%emt 0:02:06]} d5 {[%emt 0:00:08]} 3. e5 {[%emt 0:00:38]} d4 {[%emt 0:00:25]} 4. exf6 {[%emt 0:00:17]} dxc3 {[%emt 0:00:12]} 5. fxg7 {[%emt 0:00:44]} cxd2+ {[%emt 0:01:03]} 6. Qxd2 {[%emt 0:01:35]} Qxd2+ {[%emt 0:00:34]} 7. Bxd2 {[%emt 0:00:05]} Bxg7 {[%emt 0:00:08]} 8. O-O-O {[%emt 0:01:12]} Nc6 {[%emt 0:06:48]} 9. Bb5 {[%emt 0:02:26]} O-O {[%emt 0:04:59]} 10. Nf3 {[%emt 0:16:32]} Bg4 {[%emt 0:09:50]} 11. Bxc6 {[%emt 0:07:46]} bxc6 {[%emt 0:00:14]} 12. h3 {[%emt 0:00:10]} Bxf3 {[%emt 0:03:45]} 13. gxf3 {[%emt 0:00:14]} Rab8 {[%emt 0:00:13]} 14. b3 {[%emt 0:01:58]} Rfd8 {[%emt 0:03:14]} 15. Bf4 {[%emt 0:08:28]} e5 {[%emt 0:01:03]} 16. Be3 $16 {[%emt 0:00:23]} a6 {[%emt 0:03:13]} 1/2-1/2

[Event "Gibraltar Amateurs B 2020"]
[Site "Caleta"]
[Date "2020.01.25"]
[Round "1.8"]
[White "Bryant, Richard B E"]
[Black "Kearsley, Raymond J"]
[Result "1-0"]
[ECO "B01"]
[WhiteElo "1849"]
[BlackElo "1611"]
[Annotator "NA RC"]
[PlyCount "41"]
[EventDate "2020.01.20"]
[EventType "swiss"]
[EventCountry "GGB"]
[SourceTitle "playchess.com"]
[Source "ChessBase"]
[SourceQuality "1"]
[TimeControl "6600+10"]

{[%evp 13,37,41,32767,39,70,32767,32767,32767,67,54,32767,24,32767,32767,91,42,46,-139,32767,73,110,113,32767,32767,0,7]} 1. e4 {[%emt 0:00:00]} d5 {[%emt 0:00:00]} 2. exd5 {[%emt 0:00:00]} Nf6 {[%emt 0:00:04]} 3. d4 {[%emt 0:00:45]} Bg4 {[%emt 0:00:11]} 4. f3 {[%emt 0:06:40]} Bf5 {[%emt 0:03:25]} 5. Bb5+ {[%emt 0:01:00]} c6 {[%emt 0:01:54]} 6. dxc6 {[%emt 0:00:58] B01: Scandinavian Defence} Nxc6 {[%emt 0:00:07]} 7. Nc3 {[%emt 0:02:54]} (7. Bxc6+ bxc6 8. Ne2 e5 9. O-O Qb6 10. c3 O-O-O 11. Na3 Bxa3 12. bxa3 exd4 13. cxd4 {1-0 (44) Demchenko,A (2649)-Dzhumaev,M (2469) Teheran 2017}) 7... e6 {[%emt 0:00:51]} 8. Nge2 {[%emt 0:00:52]} Be7 {[%emt 0:02:46]} 9. Be3 {[%emt 0:05:10]} O-O {[%emt 0:01:23]} 10. Bf2 $146 {[%emt 0:02:35]} ({Predecessor:} 10. Bd3 Qa5 11. O-O Rfd8 12. a3 Bxd3 13. Qxd3 Ne5 14. Qb5 Qxb5 15. Nxb5 Nc4 16. Bc1 Nd5 17. Kf2 a6 18. Nbc3 Nxc3 19. bxc3 Rd5 {½-½ (19) Kalvaitis,S (2260)-Hamann,F (2106) Eckernfoerde 2016}) 10... Nb4 {[%emt 0:02:52]} 11. Ba4 {[%emt 0:00:19]} Rc8 {[%emt 0:02:24]} 12. Qd2 {[%emt 0:05:44]} Nfd5 {[%emt 0:02:03]} 13. Bb3 {[%emt 0:02:05]} a6 {[%emt 0:07:51]} (13... Bg5 $11 {keeps the balance.} 14. f4 {[#]} Nxf4 $1 {[%mdl 512]} 15. Nxf4 e5) 14. h4 {[%emt 0:02:51]} h6 {[%emt 0:02:09]} 15. Ne4 $2 {[%emt 0:00:57]} (15. Nxd5 $14 {keeps the upper hand.} Nxd5 16. Kf1) 15... Bh7 {[%emt 0:10:38]} 16. c4 {[%emt 0:02:15]} Nb6 {[%emt 0:02:18]} (16... Bxe4 $14 17. fxe4 Nf6) 17. a3 {[%emt 0:01:10]} Nc6 {[%emt 0:00:37]} 18. g4 {[%emt 0:05:48]} f5 {[%emt 0:02:36]} 19. gxf5 $11 {[%emt 0:00:35]} exf5 {[%emt 0:00:17]} 20. c5+ {[%emt 0:01:24]} Nd5 {[%emt 0:00:59]} 21. N4c3 {[%emt 0:00:46]} 1-0

[Event "Gibraltar Amateurs B 2020"]
[Site "Caleta"]
[Date "2020.01.25"]
[Round "1.9"]
[White "Krause, Marianne"]
[Black "Cooper, Malcolm H"]
[Result "1/2-1/2"]
[ECO "D04"]
[WhiteElo "1609"]
[BlackElo "1847"]
[Annotator "NA RC"]
[PlyCount "50"]
[EventDate "2020.01.20"]
[EventType "swiss"]
[EventCountry "GGB"]
[SourceTitle "playchess.com"]
[Source "ChessBase"]
[SourceQuality "1"]
[TimeControl "6600+10"]

1. d4 {[%emt 0:24:55]} Nf6 {[%emt 0:00:08]} 2. Nf3 {[%emt 0:00:02]} d5 {[%emt 0:00:12]} 3. e3 {[%emt 0:00:06]} c5 {[%emt 0:05:21]} 4. b3 {[%emt 0:00:24]} Bf5 {[%emt 0:01:46]} 5. Bb2 {[%emt 0:02:12]} e6 {[%emt 0:00:53]} 6. Bd3 {[%emt 0:01:30]} Bxd3 {[%emt 0:01:09]} 7. Qxd3 {[%emt 0:01:30]} Be7 {[%emt 0:03:07]} 8. Nbd2 {[%emt 0:00:44]} Nc6 {[%emt 0:01:19]} 9. a3 {[%emt 0:00:41]} O-O {[%emt 0:00:48]} 10. O-O {[%emt 0:00:10]} a6 {[%emt 0:03:23]} 11. Rac1 {[%emt 0:09:27]} b5 {[%emt 0:04:17]} 12. c4 {[%emt 0:06:00]} bxc4 {[%emt 0:06:12]} 13. bxc4 {[%emt 0:00:52]} cxd4 {[%emt 0:19:31]} 14. exd4 {[%emt 0:01:19]} dxc4 {[%emt 0:06:12]} 15. Nxc4 {[%emt 0:04:25]} Nd5 {[%emt 0:03:13]} 16. Nce5 {[%emt 0:03:52]} Nxe5 {[%emt 0:02:38]} 17. Nxe5 {[%emt 0:01:38]} Bd6 {[%emt 0:08:48]} 18. Rfd1 $15 {[%emt 0:06:48]} Qg5 {[%emt 0:13:51]} 19. Rc6 {[%emt 0:12:27]} Nf4 {[%emt 0:07:35]} 20. Qf3 {[%emt 0:02:03]} Bxe5 {[%emt 0:01:14]} 21. dxe5 {[%emt 0:00:19]} Rfc8 {[%emt 0:01:38]} 22. Rdc1 {[%emt 0:03:10]} Rxc6 {[%emt 0:03:48]} 23. Rxc6 {[%emt 0:00:13]} Nd5 {[%emt 0:00:23]} 24. Qe2 {[%emt 0:06:24]} a5 {[%emt 0:02:56]} 25. Bc1 {[%emt 0:04:56]} Qd8 {[%emt 0:00:24]} 1/2-1/2